bitfinex-derivatives/quotes_ETHF0:USTF0_20250410
["timestamp","ask_amount","ask_price","bid_price","bid_amount"]
[1744311086646,3.1284,1521.0,1520.8,2.9894]
[1744311087447,4.44415,1521.0,1520.7,6.1487]
[1744311087643,4.44411,1521.0,1520.7,9.1381]
[1744311087843,4.41272,1520.9,1520.7,6.1972]
[1744311088050,3.0969,1520.8,1520.6,3.2078]
[1744311088349,3.0969,1520.8,1520.6,2.9231]
[1744311088544,1.31602,1520.7,1520.4,12.19547589]
[1744311088745,4.41293,1520.6,1520.5,3.2078]
[1744311088941,3.0969,1520.6,1520.4,7.23197589]
[1744311089142,3.0969,1520.6,1520.4,5.91577589]
[1744311089739,1.31611,1520.5,1520.4,0.00987589]
[1744311089946,7.27719,1520.6,1520.4,0.00987589]
[1744311090145,1.31611,1520.5,1520.4,0.00987589]
[1744311090453,3.0969,1520.5,1520.4,0.00987589]
[1744311090838,4.41301,1520.5,1520.4,0.00987589]
[1744311091249,3.0969,1520.5,1520.4,0.00987589]
[1744311091848,4.41301,1520.5,1520.4,0.00987589]
[1744311094846,7.62081,1520.5,1520.4,0.00987589]
[1744311095049,12.62081,1520.5,1520.4,5.89e-06]
[1744311096346,18.99940391,1520.5,1520.4,5.89e-06]
[1744311098757,4.41301,1520.5,1520.4,5.89e-06]
[1744311098949,7.62081,1520.5,1520.4,5.89e-06]
[1744311099150,12.62081,1520.5,1520.4,5.89e-06]
[1744311099354,7.62081,1520.5,1520.4,5.89e-06]
[1744311099552,12.62081,1520.5,1520.4,5.89e-06]
[1744311102550,7.62081,1520.5,1520.4,5.89e-06]
[1744311106756,12.62081,1520.5,1520.4,5.89e-06]
[1744311106958,1.31655,1520.0,1519.9,2.9145]
[1744311107357,4.39415,1520.0,1519.9,2.9145]
[1744311107753,1.31655,1520.0,1519.9,7.9145]
[1744311108155,1.31655,1520.0,1519.9,9.23108]
[1744311108552,1.31655,1520.0,1519.9,7.9145]
[1744311108753,1.31655,1520.0,1519.9,2.9145]
[1744311109154,1.31663,1519.9,1519.8,2.93597589]
[1744311109461,4.18273,1519.9,1519.8,2.93597589]
[1744311110064,4.18273,1519.9,1519.8,5.87797589]
[1744311110256,13.37453,1519.9,1519.8,5.89e-06]
[1744311110563,18.37453,1519.9,1519.8,5.89e-06]
[1744311111358,1.31707,1519.4,1519.3,13.16647494]
[1744311111664,1.31707,1519.4,1519.3,10.22447494]
[1744311111863,1.31733,1519.1,1519.0,3.033]
[1744311112365,1.31733,1519.1,1519.0,8.033]
[1744311113064,1.31733,1519.1,1519.0,6.1244]
[1744311113362,1.31733,1519.1,1519.0,3.0914]
[1744311114972,0.00987589,1519.2,1519.0,8.0914]
[1744311114973,1.32718589,1519.2,1519.0,8.0914]
[1744311115275,1.32717589,1519.2,1519.1,2.8685]
[1744311116072,1.31741,1519.0,1518.9,13.14535083]
[1744311116373,1.31741,1519.0,1518.9,9.23832589]
[1744311116574,1.31741,1519.0,1518.9,7.92087589]
[1744311116774,1.31741,1519.0,1518.9,2.92087589]
[1744311117768,1.31741,1519.0,1518.9,4.23837589]
[1744311117970,1.31741,1519.0,1518.9,7.92087589]
[1744311118170,1.31741,1519.0,1518.9,2.92087589]
[1744311119978,1.31741,1519.0,1518.9,5.91607589]
[1744311120175,1.31741,1519.0,1518.9,0.00987589]
[1744311120373,9.52131,1519.0,1518.9,5.89e-06]
[1744311120680,1.31776,1518.6,1518.5,3.0397]
[1744311120880,1.31793,1518.4,1518.3,3.0924]
[1744311121375,3.2039,1518.5,1518.1,3.0397]
[1744311121376,1.31811,1518.2,1518.1,3.0397]
[1744311121876,1.3182,1518.1,1518.0,3.21767589]
[1744311122074,4.2898,1518.1,1518.0,0.00987589]
[1744311122285,1.3182,1518.1,1518.0,0.00987589]
[1744311123175,4.526,1518.1,1518.0,0.00987589]
[1744311123489,15.514,1518.1,1518.0,5.89e-06]
[1744311123978,18.4856,1518.1,1518.0,5.89e-06]
[1744311124583,1.31828,1518.0,1517.9,8.43910083]
[1744311124782,4.32118,1518.0,1517.9,5.62263083]
[1744311124976,9.32118,1518.0,1517.9,4.03308083]
[1744311125180,4.32118,1518.0,1517.9,4.03308083]
[1744311125386,1.31841,1517.9,1517.7,3.1301]
[1744311125680,3.2078,1518.1,1517.7,6.3379]
[1744311125876,9.506,1518.2,1517.8,4.43071]
[1744311126073,1.31837,1517.9,1517.8,3.1123]
[1744311126581,1.31854,1517.7,1517.6,0.00987589]
[1744311126784,10.51634,1517.7,1517.6,5.89e-06]
[1744311127083,1.31903,1517.2,1517.0,4.42111]
[1744311127284,3.29709,1517.4,1517.0,4.42111]
[1744311127285,1.31906,1517.1,1517.0,3.102]
[1744311127685,9.1978,1517.4,1517.0,8.102]
[1744311127873,1.31893,1517.3,1517.1,4.52679]
[1744311128075,12.50470589,1517.4,1517.0,4.43097589]
[1744311128281,1.31899,1517.2,1517.0,4.43097589]
[1744311128787,12.23747589,1517.4,1517.1,1.31906]
[1744311128975,15.53450589,1517.4,1517.0,3.11187589]
[1744311129286,1.31901,1517.2,1517.0,4.43096589]
[1744311129584,15.53449589,1517.4,1517.0,4.43096589]
[1744311129786,1.31902,1517.2,1517.0,4.43096589]
[1744311129977,1.31902,1517.2,1517.1,1.31906]
[1744311130177,9.02967589,1517.4,1517.2,1.31893]
[1744311130378,7.31872589,1517.4,1517.2,1.31893]
[1744311130577,0.00987589,1517.4,1517.3,1.31889]
[1744311130779,0.00987589,1517.4,1517.3,9.22899]
[1744311133580,3.2078,1518.2,1517.9,1.31834]
[1744311133782,1.31842,1517.9,1517.8,1.31844]
[1744311133990,1.31835,1518.0,1517.9,1.31837]
[1744311134190,1.31835,1518.0,1517.9,4.52617]
[1744311134382,1.31837,1517.9,1517.8,4.2292]
[1744311134586,1.31833,1518.0,1517.9,1.31835]
[1744311134779,1.31837,1517.9,1517.8,4.22918]
[1744311135090,1.31837,1517.9,1517.8,2.9108]
[1744311135284,0.00987589,1518.0,1517.7,0.00987589]
[1744311135489,1.31841,1517.9,1517.8,1.31843]
[1744311135691,1.32822589,1518.0,1517.9,1.31837]
[1744311135994,1.31839,1517.9,1517.8,1.31841]
[1744311136289,1.32822589,1518.0,1517.9,1.31837]
[1744311136792,0.00987589,1518.0,1517.8,1.31838]
[1744311137085,1.31846,1517.8,1517.7,3.21767589]
[1744311137290,4.5424,1517.9,1517.8,1.31843]
[1744311137592,4.5424,1517.9,1517.7,3.21767589]
[1744311137786,4.5424,1517.9,1517.7,0.00987589]
[1744311137787,1.31846,1517.8,1517.7,0.00987589]
[1744311138685,4.54243,1517.9,1517.7,0.00987589]
[1744311138885,4.54243,1517.9,1517.8,1.31846]
[1744311139190,1.31846,1517.8,1517.7,1.32836589]
[1744311139394,1.31846,1517.8,1517.7,0.00987589]
[1744311139892,7.45636,1517.8,1517.7,0.00987589]
[1744311140090,3.29677,1517.6,1517.1,3.29767]
[1744311140290,1.31883,1517.4,1517.3,1.31884]
[1744311140593,1.31885,1517.4,1517.3,1.31885]
[1744311140794,4.24886,1517.5,1517.4,1.3188]
[1744311140994,1.31871,1517.6,1517.5,1.31872]
[1744311141192,3.2078,1517.6,1517.0,3.2078]
[1744311141391,3.29716,1517.4,1517.0,3.2078]
[1744311141590,1.31898,1517.2,1517.1,0.00987589]
[1744311142591,15.50778,1517.2,1517.1,0.00987589]
[1744311142792,1.31947,1516.7,1516.4,9.0982]
[1744311143092,1.31942,1516.7,1516.6,1.31943]
[1744311143282,1.31952,1516.6,1516.5,1.31954]
[1744311143487,3.1877,1516.8,1516.4,12.39721]
[1744311143686,1.31943,1516.7,1516.6,1.31945]
[1744311143890,3.19757589,1516.8,1516.7,1.31941]
[1744311144086,0.00987589,1516.8,1516.7,1.31941]
[1744311145288,1.31941,1516.7,1516.6,1.31946]
[1744311145489,4.50726,1516.7,1516.6,1.3195]
[1744311145792,1.31955,1516.6,1516.5,1.31955]
[1744311145993,3.1878,1516.7,1516.6,1.3195]
[1744311146182,4.50721,1516.7,1516.6,3.2078]
[1744311146386,4.50721,1516.7,1516.6,4.5273]
[1744311146592,1.32926589,1516.8,1516.7,1.31941]
[1744311146792,1.32926589,1516.8,1516.7,4.52311]
[1744311146990,1.32920589,1516.8,1516.7,4.52311]
[1744311147195,1.31941,1516.7,1516.6,3.2078]
[1744311147392,1.32921589,1516.8,1516.7,1.31941]
[1744311147697,0.00987589,1516.8,1516.7,4.52311]
[1744311147896,1.32920589,1516.8,1516.7,4.52311]
[1744311148092,0.00987589,1516.8,1516.7,4.52311]
[1744311148294,0.00987589,1516.8,1516.7,9.52311]
[1744311149200,4.50679,1517.2,1517.1,1.31906]
[1744311149388,4.50678,1517.2,1517.1,4.52686]
[1744311149900,1.31898,1517.2,1517.1,4.52686]
[1744311150698,1.31898,1517.2,1517.1,3.2078]
[1744311150900,1.31898,1517.2,1517.1,4.52686]
[1744311151091,1.31898,1517.2,1517.1,4.52679]
[1744311151692,6.25153589,1517.3,1517.0,2.9829]
[1744311151898,1.31915,1517.0,1516.9,1.31924]
[1744311152093,1.31931,1516.9,1516.8,4.40158]
[1744311152295,3.1774,1516.9,1516.8,4.40158]
[1744311152499,1.31914,1517.1,1517.0,1.31911]
[1744311152699,1.31922,1517.0,1516.9,6.2901]
[1744311152901,1.31922,1517.0,1516.9,3.0823]
[1744311153202,1.31922,1517.0,1516.8,1.3193]
[1744311153203,8.298,1517.0,1516.6,1.31945]
[1744311153503,1.3195,1516.6,1516.5,13.64401]
[1744311153798,1.3195,1516.6,1516.5,10.66339]
[1744311153995,1.31959,1516.5,1516.4,0.00658394]
[1744311154201,1.31954,1516.6,1516.5,1.3195]
[1744311154398,1.31954,1516.6,1516.5,4.5273]
[1744311154599,4.49687,1516.7,1516.6,1.3195]
[1744311154903,4.49687,1516.7,1516.6,4.4064]
[1744311155106,4.49687,1516.7,1516.6,3.0869]
[1744311155296,4.49686,1516.7,1516.6,1.3195]
[1744311155491,1.3195,1516.6,1516.5,4.52734]
[1744311155703,4.4736,1516.6,1516.5,7.61424]
[1744311156105,1.31943,1516.7,1516.6,1.3195]
[1744311156804,1.3195,1516.6,1516.5,7.61424]
[1744311157104,1.3195,1516.6,1516.5,7.61423]
[1744311157301,1.3195,1516.7,1516.6,1.31945]
[1744311157908,4.47351,1516.8,1516.7,1.31941]
[1744311158106,4.47351,1516.8,1516.7,4.52721]
[1744311158299,3.1541,1516.8,1516.5,6.2947]
[1744311158501,1.3195,1516.6,1516.5,7.61425]
[1744311159107,1.31959,1516.5,1516.4,0.00658394]
[1744311159407,4.50599,1516.5,1516.4,1.32625394]
[1744311159606,7.71379,1516.5,1516.4,0.00658394]
[1744311159813,1.32011,1515.9,1515.8,6.205]
[1744311160001,1.32011,1515.9,1515.8,7.74003]
[1744311160201,1.3202,1515.8,1515.7,4.27881]
[1744311160606,1.32028,1515.7,1515.6,7.74019]
[1744311160909,4.39738,1515.7,1515.6,7.74019]
[1744311161810,4.39738,1515.7,1515.6,3.2078]
[1744311162604,4.39738,1515.7,1515.6,4.52817]
[1744311163203,3.0771,1515.7,1515.6,4.52817]
[1744311163397,0.00987589,1515.8,1515.7,1.32028]
[1744311163722,1.33007589,1515.8,1515.7,3.0737]
[1744311164305,0.00987589,1515.8,1515.7,4.39398]
[1744311164507,0.00987589,1515.8,1515.7,15.36998]
[1744311164697,0.00987589,1515.8,1515.7,18.45348]
[1744311164904,6.24123,1516.5,1516.1,1.31988]
[1744311165203,3.2335,1516.4,1516.0,3.2078]
[1744311165408,1.31978,1516.3,1516.2,4.52758]
[1744311165808,1.31978,1516.3,1516.2,1.31985]
[1744311166210,4.56312589,1516.4,1516.3,1.31976]
[1744311166405,1.31976,1516.3,1516.2,4.52759]
[1744311166610,3.2335,1516.3,1516.0,15.66173]
[1744311166912,1.31976,1516.3,1516.2,3.2078]
[1744311167212,4.31146,1516.3,1516.2,4.52765]
[1744311167507,1.32958589,1516.4,1516.3,1.31976]
[1744311167720,1.32958589,1516.4,1516.3,4.35986]
[1744311168413,1.32954589,1516.4,1516.3,3.0401]
[1744311168612,0.00987589,1516.4,1516.1,2.9479]
[1744311168812,6.29115,1516.3,1516.0,1.31997]
[1744311169000,1.31997,1516.1,1516.0,1.31993]
[1744311169204,1.31991,1516.2,1516.1,1.31989]
[1744311169509,4.31146,1516.3,1516.2,1.31985]
[1744311169704,4.31146,1516.3,1516.2,4.55975]
[1744311170410,4.31146,1516.3,1516.2,3.2399]
[1744311170704,1.31985,1516.2,1516.1,10.50367]
[1744311170907,4.32485,1516.2,1516.1,10.50373]
[1744311171107,3.005,1516.2,1516.1,10.50373]
[1744311171308,1.32961589,1516.4,1516.3,1.31976]
[1744311171511,3.01487589,1516.4,1516.3,4.52756]
[1744311171712,0.00987589,1516.4,1516.3,4.52756]
[1744311171901,0.00987589,1516.4,1516.3,7.66426]
[1744311172099,0.00987589,1516.4,1516.3,12.66426]
[1744311172100,0.00329195,1516.4,1516.3,12.66426]
[1744311172303,8.09918523,1517.2,1517.0,1.31908]
[1744311172603,3.005,1517.1,1517.0,4.52688]
[1744311172799,4.32406,1517.1,1517.0,4.52688]
[1744311173012,4.32406,1517.1,1517.0,7.75368]
[1744311173512,3.005,1517.1,1517.0,7.75368]
[1744311176807,1.31915,1517.0,1516.9,1.32906589]
[1744311177006,1.31915,1517.0,1516.9,0.00987589]
[1744311177204,9.39675,1517.0,1516.9,0.00987589]
[1744311177410,12.64775,1517.0,1516.9,0.00987589]
[1744311178205,7.64775,1517.0,1516.9,0.00987589]
[1744311178403,3.0776,1517.0,1516.9,4.53691589]
[1744311179509,3.0776,1517.0,1516.9,7.63881589]
[1744311180306,4.39675,1517.0,1516.9,0.00987589]
[1744311181008,0.00987589,1517.2,1517.1,1.31906]
[1744311181314,0.00987589,1517.2,1517.1,4.52686]
[1744311181509,5.89e-06,1517.2,1517.1,9.52686]
[1744311181708,5.10071523,1517.5,1517.4,1.3188]
[1744311181906,5.10071523,1517.5,1517.4,3.2078]
[1744311182108,1.3188,1517.4,1517.3,1.31883]
[1744311182304,4.30958,1517.4,1517.3,1.31889]
[1744311182509,1.31898,1517.2,1517.1,1.31899]
[1744311182704,7.9907,1517.4,1517.0,3.2078]
[1744311182705,2.9907,1517.4,1517.0,3.2078]
[1744311182910,2.9907,1517.1,1517.0,4.52687]
[1744311183404,0.00987589,1517.3,1517.2,1.31898]
[1744311183610,0.00987589,1517.3,1517.2,4.52678]
[1744311183611,1.32876589,1517.3,1517.2,4.52678]
[1744311183813,0.00987589,1517.3,1517.2,4.52678]
[1744311184219,1.32876589,1517.3,1517.2,4.52678]
[1744311184517,0.00987589,1517.3,1517.2,4.52678]
[1744311184716,0.00987589,1517.3,1517.2,7.63308]
[1744311186414,0.00987589,1517.3,1517.2,10.73128]
[1744311186914,5.89e-06,1517.3,1517.2,15.73128]
[1744311187704,5.89e-06,1517.3,1517.2,10.73128]
[1744311188109,5.89e-06,1517.3,1517.2,15.73128]
[1744311188819,5.89e-06,1517.3,1517.2,10.73128]
[1744311189912,5.89e-06,1517.3,1517.2,15.73128]
[1744311192316,5.89e-06,1517.3,1517.2,21.72328]
[1744311192919,5.89e-06,1517.3,1517.2,22.38248]
[1744311193112,5.89e-06,1517.3,1517.2,21.72328]
[1744311194722,5.89e-06,1517.3,1517.2,16.72328]
[1744311196019,6.31889589,1517.3,1517.2,3.2078]
[1744311196213,1.31906,1517.1,1517.0,3.2078]
[1744311196627,1.31906,1517.1,1516.9,0.00987589]
[1744311196628,1.31915,1517.0,1516.9,0.00987589]
[1744311196820,7.44955,1517.0,1516.9,0.00987589]
[1744311197021,15.61525,1517.0,1516.9,5.89e-06]
[1744311197218,1.31933,1516.8,1516.7,15.45152543]
[1744311197625,6.31933,1516.8,1516.7,15.45152543]
[1744311197826,9.2961,1517.0,1516.7,15.45152543]
[1744311198020,6.1304,1517.0,1516.9,4.52704]
[1744311198223,3.0878,1517.0,1516.7,18.66920132]
[1744311198521,1.31933,1516.8,1516.7,15.46140132]
[1744311199014,6.31933,1516.8,1516.7,15.46140132]
[1744311199220,9.32733,1516.8,1516.7,15.46140132]
[1744311199425,3.008,1516.8,1516.7,4.53708589]
[1744311199726,3.29745,1517.2,1516.7,3.21767589]
[1744311199922,3.008,1517.1,1516.7,3.21767589]
[1744311200227,1.31933,1516.8,1516.7,4.53702589]
[1744311201025,1.31933,1516.8,1516.7,3.21767589]
[1744311201236,4.50169,1516.9,1516.7,3.21767589]
[1744311201419,1.31933,1516.8,1516.7,4.53704589]
[1744311201618,3.1824,1516.8,1516.7,4.53704589]
[1744311202129,4.50173,1516.8,1516.7,4.53704589]
[1744311202527,3.1824,1516.8,1516.7,4.53704589]
[1744311202722,4.50173,1516.8,1516.7,4.53704589]
[1744311203027,3.1824,1516.8,1516.7,4.53704589]
[1744311203523,1.31908,1517.1,1517.0,1.31909]
[1744311203726,1.31908,1517.1,1517.0,4.52689]
[1744311203926,1.31908,1517.1,1517.0,3.2078]
[1744311204130,1.31924,1516.9,1516.8,3.2078]
[1744311204735,1.31933,1516.8,1516.7,0.00987589]
[1744311205031,4.27103,1516.8,1516.7,0.00987589]
[1744311205626,4.27103,1516.8,1516.7,3.21767589]
[1744311207133,2.9517,1516.8,1516.7,4.53708589]
[1744311208531,1.31912,1517.1,1517.0,1.31913]
[1744311208744,1.31912,1517.1,1517.0,3.2078]
[1744311208924,3.1103,1517.2,1517.0,3.2078]
[1744311209232,1.31906,1517.1,1517.0,4.52689]
[1744311209835,4.42934,1517.2,1517.1,1.31906]
[1744311210134,1.31906,1517.1,1517.0,4.52688]
[1744311210627,3.29745,1517.2,1516.9,1.31923]
[1744311210833,3.29745,1517.2,1516.8,3.2078]
[1744311210834,1.31924,1516.9,1516.8,3.2078]
[1744311212232,1.31924,1516.9,1516.8,4.52713]
[1744311212434,1.31923,1517.0,1516.9,1.3192]
[1744311212640,3.29785,1517.1,1516.8,7.42324]
[1744311212641,1.31924,1516.9,1516.8,7.42324]
[1744311212930,1.31904,1517.2,1517.1,1.31901]
[1744311213131,4.41077589,1517.3,1517.2,1.31898]
[1744311213331,1.31898,1517.2,1517.1,4.52682]
[1744311213532,1.31898,1517.2,1517.1,3.2078]
[1744311213739,1.31898,1517.2,1517.1,4.52686]
[1744311213943,4.41076589,1517.3,1517.2,1.31898]
[1744311214239,3.09180589,1517.3,1517.2,1.31898]
[1744311214426,4.41069589,1517.3,1517.2,4.21518]
[1744311214632,5.89e-06,1517.3,1517.2,4.21518]
[1744311215230,5.89e-06,1517.3,1517.2,9.21518]
[1744311216249,5.89e-06,1517.3,1517.2,4.21518]
[1744311216438,5.89e-06,1517.3,1517.2,15.20718]
[1744311216839,7.70795628,1517.6,1517.5,1.31872]
[1744311217136,7.70795628,1517.6,1517.5,10.49052]
[1744311217543,7.70795628,1517.6,1517.5,13.58942]
[1744311218236,0.00987589,1517.7,1517.6,1.31863]
[1744311220137,1.31863,1517.6,1517.5,3.21767589]
[1744311220441,1.31863,1517.6,1517.5,1.52659589]
[1744311220648,3.29722,1517.4,1517.2,3.2078]
[1744311220937,1.31906,1517.1,1517.0,4.52694]
[1744311221234,6.3792,1517.5,1516.8,3.29829]
[1744311221235,3.2974,1517.3,1516.8,3.2078]
[1744311221440,1.31924,1516.9,1516.8,3.2078]
[1744311221840,1.31922,1517.0,1516.9,1.31924]
[1744311222041,1.3191,1517.1,1516.8,3.2078]
[1744311222344,1.31906,1517.1,1517.0,3.2078]
[1744311222544,6.4346,1517.2,1516.8,3.2078]
[1744311222738,1.31924,1516.9,1516.8,3.2078]
[1744311223245,1.31924,1516.9,1516.7,18.32657589]
[1744311223246,1.31927,1516.9,1516.7,18.32657589]
[1744311223548,1.31933,1516.8,1516.7,9.20967589]
[1744311223842,1.31933,1516.8,1516.7,0.00987589]
[1744311224142,6.31933,1516.8,1516.7,0.00987589]
[1744311224643,1.31933,1516.8,1516.7,0.00987589]
[1744311226146,4.50173,1516.8,1516.7,0.00987589]
[1744311226647,4.50173,1516.8,1516.7,3.21767589]
[1744311227145,3.1824,1516.8,1516.7,4.53708589]
[1744311227337,4.50173,1516.8,1516.7,3.21767589]
[1744311227751,4.50173,1516.8,1516.7,4.53708589]
[1744311227943,4.50173,1516.8,1516.7,3.21767589]
[1744311228250,4.50173,1516.8,1516.7,4.53708589]
[1744311229147,4.50173,1516.8,1516.7,7.53518589]
[1744311229748,4.50173,1516.8,1516.7,6.21577589]
[1744311230352,1.32911589,1516.9,1516.8,1.31933]
[1744311230554,2.95467589,1516.9,1516.8,1.31933]
[1744311230742,4.27391589,1516.9,1516.8,1.31933]
[1744311231450,0.00987589,1516.9,1516.8,1.31933]
[1744311231654,1.31933,1516.8,1516.7,3.21767589]
[1744311232955,1.31933,1516.8,1516.7,0.00987589]
[1744311233149,4.23743,1516.8,1516.7,0.00987589]
[1744311235154,1.31933,1516.8,1516.7,1.32928589]
[1744311235343,1.31933,1516.8,1516.7,4.23668589]
[1744311235542,1.31933,1516.8,1516.7,2.91727589]
[1744311236253,1.31933,1516.8,1516.7,0.00987589]
[1744311238955,9.48433,1516.8,1516.7,5.89e-06]
[1744311239151,9.40293,1516.8,1516.7,5.89e-06]
[1744311239352,4.40293,1516.8,1516.7,5.89e-06]
[1744311239756,9.40293,1516.8,1516.7,5.89e-06]
[1744311239949,15.35893,1516.8,1516.7,5.89e-06]
[1744311240752,4.40293,1516.8,1516.7,5.89e-06]
[1744311241148,4.40293,1516.8,1516.7,4.52721589]
[1744311241549,4.40293,1516.8,1516.7,5.89e-06]
[1744311241750,4.40293,1516.8,1516.7,1.31941589]
[1744311241955,4.40293,1516.8,1516.7,5.89e-06]
[1744311242155,4.40293,1516.8,1516.7,1.31941589]
[1744311242655,4.40293,1516.8,1516.7,3.20780589]
[1744311242858,4.40293,1516.8,1516.7,4.52721589]
[1744311243452,3.0836,1516.8,1516.7,4.52721589]
[1744311243658,0.00987589,1516.9,1516.8,1.31933]
[1744311243953,11.53216974,1517.4,1517.2,1.31891]
[1744311244158,11.53216974,1517.4,1517.3,3.1552]
[1744311244359,3.29745,1517.2,1516.8,3.0085]
[1744311244560,1.31922,1517.0,1516.9,3.2078]
[1744311244756,1.31922,1517.0,1516.9,6.363]
[1744311245059,1.31933,1516.8,1516.7,10.51921589]
[1744311245255,4.29624,1516.9,1516.8,3.1552]
[1744311245556,4.29624,1516.9,1516.8,4.47453]
[1744311245858,2.977,1516.9,1516.8,4.47453]
[1744311246054,4.29624,1516.9,1516.8,4.47453]
[1744311246452,1.31933,1516.8,1516.7,4.52721589]
[1744311246652,4.38383,1516.8,1516.7,7.37771589]
[1744311246859,3.0645,1516.8,1516.7,7.37771589]
[1744311247057,3.30754589,1517.1,1516.7,17.01430589]
[1744311247262,1.31933,1516.8,1516.7,12.01430589]
[1744311247459,1.31933,1516.8,1516.7,3.20780589]
[1744311247654,1.31933,1516.8,1516.7,5.89e-06]
[1744311247854,9.52713,1516.8,1516.7,5.89e-06]
[1744311248058,12.46253,1516.8,1516.7,5.89e-06]
[1744311248360,15.52703,1516.8,1516.7,5.89e-06]
[1744311250558,10.52703,1516.8,1516.7,5.89e-06]
[1744311251262,7.31923,1516.8,1516.7,5.89e-06]
[1744311251463,4.38383,1516.8,1516.7,5.89e-06]
[1744311251660,7.59163,1516.8,1516.7,5.89e-06]
[1744311251862,12.59163,1516.8,1516.7,5.89e-06]
[1744311252158,1.32002,1516.0,1515.9,6.2878]
[1744311252354,1.32002,1516.0,1515.9,3.2078]
[1744311252849,1.32028,1515.7,1515.6,3.08]
[1744311253051,3.0376,1515.9,1515.5,10.24856278]
[1744311253250,0.00987589,1515.8,1515.7,4.528]
[1744311253774,0.00987589,1515.8,1515.7,9.528]
[1744311254366,0.00987589,1515.8,1515.7,4.528]
[1744311254556,0.00987589,1515.8,1515.7,9.528]
[1744311255671,0.00987589,1515.8,1515.7,4.528]
[1744311255860,1.33007589,1515.8,1515.7,3.2078]
[1744311256062,1.33007589,1515.8,1515.7,4.52808]
[1744311256359,1.33007589,1515.8,1515.7,3.2078]
[1744311256569,1.32037,1515.6,1515.5,3.21767589]
[1744311256860,4.38564,1515.7,1515.6,1.32037]
[1744311257163,1.32037,1515.6,1515.5,3.21767589]
[1744311257360,3.0653,1515.7,1515.5,4.53813589]
[1744311257557,1.32037,1515.6,1515.5,4.53813589]
[1744311257758,1.32037,1515.6,1515.5,3.21767589]
[1744311258455,1.32037,1515.6,1515.5,4.53813589]
[1744311258970,1.32037,1515.6,1515.5,0.00987589]
[1744311259960,4.35377,1515.6,1515.5,0.00987589]
[1744311260758,7.56157,1515.6,1515.5,0.00987589]
[1744311261458,18.51157,1515.6,1515.5,5.89e-06]
[1744311262869,7.56157,1515.6,1515.5,5.89e-06]
[1744311266667,4.35377,1515.6,1515.5,5.89e-06]
[1744311266968,1.32037,1515.6,1515.5,5.89e-06]
[1744311267169,1.32037,1515.6,1515.5,3.15240589]
[1744311268164,1.32037,1515.6,1515.5,4.47286589]
[1744311268673,4.20426,1515.7,1515.6,1.32037]
[1744311268867,1.32036,1515.7,1515.6,1.32037]
[1744311269169,0.00987589,1515.8,1515.7,1.32028]
[1744311269468,0.00987589,1515.8,1515.7,4.47268]
[1744311269671,13.51294974,1516.2,1515.7,17.40494]
[1744311269965,2.8839,1516.3,1516.1,1.31988]
[1744311270173,1.3198,1516.3,1516.2,1.31981]
[1744311270364,6.50695,1516.5,1516.1,2.9899]
[1744311270562,2.8991,1516.4,1516.3,1.31976]
[1744311270768,9.40627,1516.4,1515.6,9.1998]
[1744311270973,3.2078,1516.2,1515.7,3.30071]
[1744311271173,0.00987589,1516.5,1516.0,1.31999]
[1744311271174,1.31998,1516.1,1516.0,1.31999]
[1744311271469,1.32001,1516.1,1516.0,1.32002]
[1744311271764,3.29963,1516.2,1515.9,2.9899]
[1744311271969,1.32002,1516.0,1515.9,2.9899]
[1744311272169,4.21909,1516.1,1516.0,1.32002]
[1744311272364,1.32002,1516.0,1515.9,4.30995]
[1744311272564,1.32002,1516.0,1515.9,4.31001]
[1744311272765,2.8991,1516.1,1516.0,1.32002]
[1744311272961,2.8991,1516.1,1515.8,9.20967589]
[1744311272962,2.8991,1516.1,1515.8,0.00987589]
[1744311273168,1.32011,1515.9,1515.8,0.00987589]
[1744311273563,4.26341,1515.9,1515.8,0.00987589]
[1744311274162,4.26341,1515.9,1515.8,1.33007589]
[1744311274965,4.26341,1515.9,1515.8,0.00987589]
[1744311275165,4.26341,1515.9,1515.8,3.04087589]
[1744311275368,4.26341,1515.9,1515.8,4.36107589]
[1744311275561,1.32011,1515.9,1515.8,3.04087589]
[1744311277172,1.32011,1515.9,1515.8,4.36107589]
[1744311277474,1.32008,1516.0,1515.9,1.32011]
[1744311277769,1.32008,1516.0,1515.9,2.9299]
[1744311277966,1.32008,1516.0,1515.9,4.25001]
[1744311278166,2.938,1516.1,1516.0,1.32002]
[1744311278372,1.31993,1516.1,1516.0,2.9299]
[1744311278572,1.32011,1515.9,1515.8,3.21767589]
[1744311278773,1.32011,1515.9,1515.8,2.93977589]
[1744311278970,1.32011,1515.9,1515.8,0.00987589]
[1744311279167,2.938,1516.0,1515.8,3.21767589]
[1744311279371,1.31991,1516.2,1516.1,1.31991]
[1744311280074,1.31971,1516.4,1516.3,1.3197]
[1744311280269,0.00987589,1516.5,1516.4,1.31967]
[1744311280468,4.25006589,1516.5,1516.4,1.31967]
[1744311281074,1.31971,1516.4,1516.3,1.3197]
[1744311281379,1.31985,1516.2,1516.1,4.21177]
[1744311281668,1.31985,1516.2,1516.1,7.15629]
[1744311281875,1.31985,1516.3,1516.2,1.31982]
[1744311282069,1.31985,1516.2,1516.1,5.8364]
[1744311282269,1.31985,1516.2,1516.1,2.8919]
[1744311283075,1.32011,1515.9,1515.8,0.00987589]
[1744311283571,6.32011,1515.9,1515.8,0.00987589]
[1744311283875,1.32042,1515.6,1515.5,1.32041]
[1744311284078,6.17729,1515.8,1515.4,6.2616]
[1744311284373,1.32046,1515.5,1515.4,3.2078]
[1744311284575,12.0274,1515.8,1515.4,3.2078]
[1744311284772,2.8766,1515.8,1515.7,1.32028]
[1744311284967,0.00987589,1515.8,1515.7,1.32028]
[1744311285172,0.00987589,1515.8,1515.7,4.37408]
[1744311285370,1.32028,1515.7,1515.6,1.32032]
[1744311285575,4.44978,1515.7,1515.6,3.2078]
[1744311285778,3.1295,1515.7,1515.4,1.33040589]
[1744311285977,3.1295,1515.7,1515.4,0.00987589]
[1744311286176,1.32042,1515.6,1515.5,1.32042]